[Event "*** Titled Tuesday Blitz"]
[Site "Chess.com"]
[Date "2020.11.03"]
[Round "8"]
[White "tdf98pantani"]
[Black "GigaQuparadze"]
[Result "1/2-1/2"]
[WhiteElo "2725"]
[BlackElo "2861"]
[TimeControl "180+1"]
[EndTime "11:34:04 PST"]
[Termination "Game drawn by repetition"]

1. e4 {[%clk 0:03:00.9]} 1... c5 {[%clk 0:02:59.4]} 2. Nf3 {[%clk 0:03:01.1]}
2... e6 {[%clk 0:02:58.6]} 3. d4 {[%clk 0:03:01.3]} 3... cxd4 {[%clk 0:02:59.5]}
4. Nxd4 {[%clk 0:03:01.9]} 4... a6 {[%clk 0:03:00]} 5. Bd3 {[%clk 0:03:02.2]}
5... Nf6 {[%clk 0:02:59.7]} 6. O-O {[%clk 0:03:01.5]} 6... Qc7 {[%clk
0:03:00.2]} 7. Qe2 {[%clk 0:03:01.5]} 7... d6 {[%clk 0:03:00.1]} 8. f4 {[%clk
0:02:58.4]} 8... Nbd7 {[%clk 0:02:58.5]} 9. c4 {[%clk 0:02:58.1]} 9... g6 {[%clk
0:02:58.3]} 10. Nc3 {[%clk 0:02:56.8]} 10... Bg7 {[%clk 0:02:58.1]} 11. f5
{[%clk 0:02:47.3]} 11... e5 {[%clk 0:02:57.1]} 12. Nc2 {[%clk 0:02:44.3]} 12...
O-O {[%clk 0:02:56.4]} 13. Ne3 {[%clk 0:02:38.4]} 13... b5 {[%clk 0:02:45.5]}
14. cxb5 {[%clk 0:02:37.5]} 14... axb5 {[%clk 0:02:44.2]} 15. Ncd5 {[%clk
0:02:35.7]} 15... Qb8 {[%clk 0:02:40.1]} 16. Bd2 {[%clk 0:02:27.5]} 16... Bb7
{[%clk 0:02:36.4]} 17. Bxb5 {[%clk 0:02:04.9]} 17... Nxd5 {[%clk 0:02:31.4]} 18.
Nxd5 {[%clk 0:01:59.9]} 18... Bxd5 {[%clk 0:02:28.3]} 19. exd5 {[%clk
0:02:00.3]} 19... Nf6 {[%clk 0:02:27.3]} 20. Bc6 {[%clk 0:01:53.1]} 20... Qxb2
{[%clk 0:02:26.6]} 21. Rfb1 {[%clk 0:01:25.1]} 21... Qd4+ {[%clk 0:02:18.6]} 22.
Be3 {[%clk 0:01:25.3]} 22... Qe4 {[%clk 0:02:18.8]} 23. fxg6 {[%clk 0:01:10.1]}
23... hxg6 {[%clk 0:02:18]} 24. Bxa8 {[%clk 0:00:54.7]} 24... Rxa8 {[%clk
0:02:08.6]} 25. Qf3 {[%clk 0:00:41.4]} 25... Qxf3 {[%clk 0:02:05.8]} 26. gxf3
{[%clk 0:00:41.5]} 26... Nxd5 {[%clk 0:02:06.4]} 27. Rb3 {[%clk 0:00:21.3]}
27... e4 {[%clk 0:02:02.4]} 28. Rd1 {[%clk 0:00:20.8]} 28... Nc3 {[%clk
0:02:02.3]} 29. Rxd6 {[%clk 0:00:20]} 29... exf3 {[%clk 0:02:02.5]} 30. a3
{[%clk 0:00:17.5]} 30... Re8 {[%clk 0:01:55.8]} 31. Rd3 {[%clk 0:00:14.8]} 31...
Ne4 {[%clk 0:01:49]} 32. Bf2 {[%clk 0:00:14.1]} 32... Rc8 {[%clk 0:01:44.8]} 33.
Rb1 {[%clk 0:00:09.7]} 33... Ng5 {[%clk 0:01:29.4]} 34. Be3 {[%clk 0:00:06.1]}
34... Nh3+ {[%clk 0:01:29]} 35. Kf1 {[%clk 0:00:06.5]} 35... Rc2 {[%clk
0:01:27.6]} 36. Bd2 {[%clk 0:00:06.9]} 36... g5 {[%clk 0:01:16.5]} 37. Rb8+
{[%clk 0:00:06.5]} 37... Kh7 {[%clk 0:01:16.3]} 38. Rxf3 {[%clk 0:00:07]} 38...
g4 {[%clk 0:01:15.4]} 39. Rd3 {[%clk 0:00:06.7]} 39... Kg6 {[%clk 0:01:09.8]}
40. Rb5 {[%clk 0:00:05.3]} 40... Ra2 {[%clk 0:01:05]} 41. Rd6+ {[%clk
0:00:04.5]} 41... f6 {[%clk 0:01:04.9]} 42. Rb4 {[%clk 0:00:02.4]} 42... Kh5
{[%clk 0:00:58.2]} 43. Rb5+ {[%clk 0:00:02.6]} 43... Kg6 {[%clk 0:00:54.5]} 44.
Rb4 {[%clk 0:00:02.9]} 44... Kf5 {[%clk 0:00:55]} 45. Rd5+ {[%clk 0:00:02.7]}
45... Ke6 {[%clk 0:00:54.9]} 46. Rd3 {[%clk 0:00:02.6]} 46... f5 {[%clk
0:00:41.8]} 47. Rb6+ {[%clk 0:00:02.9]} 47... Ke5 {[%clk 0:00:42.2]} 48. Bc3+
{[%clk 0:00:02.6]} 48... Ke4 {[%clk 0:00:42.5]} 49. Rxh3 {[%clk 0:00:01.5]}
49... gxh3 {[%clk 0:00:39.3]} 50. Bxg7 {[%clk 0:00:02.2]} 50... Rxh2 {[%clk
0:00:39.5]} 51. Rb4+ {[%clk 0:00:01.8]} 51... Kf3 {[%clk 0:00:39.5]} 52. Rb3+
{[%clk 0:00:02.2]} 52... Kg4 {[%clk 0:00:39.4]} 53. Be5 {[%clk 0:00:02.4]} 53...
f4 {[%clk 0:00:32.6]} 54. Rb4 {[%clk 0:00:02.2]} 54... Rh1+ {[%clk 0:00:32.1]}
55. Kf2 {[%clk 0:00:02.7]} 55... Rh2+ {[%clk 0:00:32.4]} 56. Kg1 {[%clk
0:00:03.4]} 56... Rg2+ {[%clk 0:00:32]} 57. Kf1 {[%clk 0:00:04]} 57... Ra2
{[%clk 0:00:32]} 58. Rxf4+ {[%clk 0:00:03.6]} 58... Kg5 {[%clk 0:00:32.4]} 59.
Rf3 {[%clk 0:00:04.2]} 59... h2 {[%clk 0:00:29.3]} 60. Bxh2 {[%clk 0:00:03.6]}
60... Rxh2 {[%clk 0:00:28.6]} 61. Ke1 {[%clk 0:00:04.2]} 61... Kg4 {[%clk
0:00:27]} 62. Rf7 {[%clk 0:00:04]} 62... Ra2 {[%clk 0:00:26.1]} 63. Ra7 {[%clk
0:00:03.8]} 63... Kf5 {[%clk 0:00:26.4]} 64. Kd1 {[%clk 0:00:04.2]} 64... Ke5
{[%clk 0:00:26.9]} 65. Kc1 {[%clk 0:00:04.9]} 65... Rh2 {[%clk 0:00:26.7]} 66.
Kb1 {[%clk 0:00:05.6]} 66... Kd4 {[%clk 0:00:26.4]} 67. Rb7 {[%clk 0:00:06.1]}
67... Kc5 {[%clk 0:00:25.7]} 68. Rb2 {[%clk 0:00:05.5]} 68... Rh1+ {[%clk
0:00:25.2]} 69. Ka2 {[%clk 0:00:04.1]} 69... Rh4 {[%clk 0:00:26.1]} 70. Rc2+
{[%clk 0:00:04]} 70... Kb5 {[%clk 0:00:25.8]} 71. Kb3 {[%clk 0:00:04.6]} 71...
Rh3+ {[%clk 0:00:26]} 72. Rc3 {[%clk 0:00:05]} 72... Rxc3+ {[%clk 0:00:25.2]}
73. Kxc3 {[%clk 0:00:05.1]} 73... Ka6 {[%clk 0:00:26.1]} 74. Kb4 {[%clk
0:00:05.3]} 74... Ka7 {[%clk 0:00:27]} 75. Ka5 {[%clk 0:00:05.7]} 75... Ka8
{[%clk 0:00:27.9]} 76. Ka6 {[%clk 0:00:06.1]} 76... Kb8 {[%clk 0:00:28.3]} 77.
Kb6 {[%clk 0:00:06.6]} 77... Ka8 {[%clk 0:00:29.2]} 78. Ka6 {[%clk 0:00:07]}
78... Kb8 {[%clk 0:00:30]} 79. Kb5 {[%clk 0:00:07.4]} 79... Ka8 {[%clk
0:00:30.9]} 80. Kc4 {[%clk 0:00:07.8]} 80... Kb8 {[%clk 0:00:31.3]} 81. Kb5
{[%clk 0:00:08.2]} 81... Ka8 {[%clk 0:00:32.2]} 82. Ka4 {[%clk 0:00:08.7]} 82...
Kb8 {[%clk 0:00:33.1]} 83. Kb3 {[%clk 0:00:09.2]} 83... Ka8 {[%clk 0:00:34]} 84.
Ka2 {[%clk 0:00:09.9]} 84... Kb8 {[%clk 0:00:34.9]} 85. Kb3 {[%clk 0:00:10.4]}
85... Ka8 {[%clk 0:00:35.8]} 86. Ka4 {[%clk 0:00:10.9]} 86... Kb8 {[%clk
0:00:36.7]} 87. Kb5 {[%clk 0:00:11.6]} 1/2-1/2

[Event "*** Titled Tuesday Blitz"]
[Site "Chess.com"]
[Date "2020.11.03"]
[Round "8"]
[White "Lagmantr"]
[Black "Sebastian"]
[Result "1/2-1/2"]
[WhiteElo "2737"]
[BlackElo "2889"]
[TimeControl "180+1"]
[EndTime "11:34:05 PST"]
[Termination "Game drawn - insufficient material"]

1. e4 {[%clk 0:03:00.9]} 1... c5 {[%clk 0:02:55.3]} 2. Nf3 {[%clk 0:03:00.9]}
2... d6 {[%clk 0:02:54.6]} 3. d4 {[%clk 0:03:01]} 3... cxd4 {[%clk 0:02:54.7]}
4. Nxd4 {[%clk 0:03:01.3]} 4... Nf6 {[%clk 0:02:55]} 5. Nc3 {[%clk 0:03:01.6]}
5... a6 {[%clk 0:02:55.7]} 6. Be3 {[%clk 0:03:01.5]} 6... e5 {[%clk 0:02:55.5]}
7. Nb3 {[%clk 0:03:01.7]} 7... Be6 {[%clk 0:02:55.2]} 8. f3 {[%clk 0:03:02]}
8... h5 {[%clk 0:02:55]} 9. Qd2 {[%clk 0:03:02]} 9... Nbd7 {[%clk 0:02:55.3]}
10. Nd5 {[%clk 0:02:58]} 10... Bxd5 {[%clk 0:02:54.2]} 11. exd5 {[%clk
0:02:58.9]} 11... g6 {[%clk 0:02:51.5]} 12. O-O-O {[%clk 0:02:58.8]} 12... Qc7
{[%clk 0:02:50]} 13. Kb1 {[%clk 0:02:57.7]} 13... Bg7 {[%clk 0:02:49.3]} 14. c4
{[%clk 0:02:52.9]} 14... O-O {[%clk 0:02:42.9]} 15. h3 {[%clk 0:02:43.3]} 15...
b6 {[%clk 0:01:56.2]} 16. g4 {[%clk 0:02:40.9]} 16... Nc5 {[%clk 0:01:55.3]} 17.
Bg5 {[%clk 0:02:08.8]} 17... e4 {[%clk 0:01:34.7]} 18. Bxf6 {[%clk 0:01:53.4]}
18... Bxf6 {[%clk 0:01:34.2]} 19. gxh5 {[%clk 0:01:54]} 19... Rfe8 {[%clk
0:00:34.4]} 20. Rg1 {[%clk 0:01:13.1]} 20... e3 {[%clk 0:00:33.1]} 21. Qc2
{[%clk 0:01:12.8]} 21... Kf8 {[%clk 0:00:32.8]} 22. hxg6 {[%clk 0:01:00.1]}
22... fxg6 {[%clk 0:00:32.7]} 23. Qxg6 {[%clk 0:00:59.5]} 23... Qg7 {[%clk
0:00:32.2]} 24. Bd3 {[%clk 0:00:27.1]} 24... Qxg6 {[%clk 0:00:27.6]} 25. Bxg6
{[%clk 0:00:04.4]} 25... Re7 {[%clk 0:00:27.3]} 26. Nxc5 {[%clk 0:00:04.6]}
26... bxc5 {[%clk 0:00:27.1]} 27. Bd3 {[%clk 0:00:05.1]} 27... a5 {[%clk
0:00:18]} 28. Rg2 {[%clk 0:00:05.1]} 28... a4 {[%clk 0:00:16.4]} 29. Re1 {[%clk
0:00:05.6]} 29... Rb8 {[%clk 0:00:15.2]} 30. Ree2 {[%clk 0:00:03.7]} 30... Bd4
{[%clk 0:00:13.9]} 31. Be4 {[%clk 0:00:03.8]} 31... Reb7 {[%clk 0:00:13.1]} 32.
Kc1 {[%clk 0:00:04.2]} 32... Ke7 {[%clk 0:00:13.3]} 33. Rc2 {[%clk 0:00:04.4]}
33... Kf6 {[%clk 0:00:13.4]} 34. Rce2 {[%clk 0:00:04.8]} 34... Ke5 {[%clk
0:00:13.3]} 35. Rg5+ {[%clk 0:00:05.2]} 35... Kf6 {[%clk 0:00:11.8]} 36. Rg6+
{[%clk 0:00:05.7]} 36... Ke7 {[%clk 0:00:12]} 37. Re6+ {[%clk 0:00:06.1]} 37...
Kd7 {[%clk 0:00:10.8]} 38. Bf5 {[%clk 0:00:06.5]} 38... Bxb2+ {[%clk 0:00:05.7]}
39. Kd1 {[%clk 0:00:06.3]} 39... Bd4 {[%clk 0:00:05.8]} 40. R6xe3+ {[%clk
0:00:06.5]} 40... Kc7 {[%clk 0:00:05.4]} 41. Re7+ {[%clk 0:00:07.1]} 41... Kb6
{[%clk 0:00:05.9]} 42. Rxb7+ {[%clk 0:00:07.5]} 42... Kxb7 {[%clk 0:00:05.7]}
43. Rh2 {[%clk 0:00:07.7]} 43... Kc7 {[%clk 0:00:04.6]} 44. h4 {[%clk 0:00:08]}
44... Be5 {[%clk 0:00:04.8]} 45. Rg2 {[%clk 0:00:07.5]} 45... Rh8 {[%clk
0:00:04.8]} 46. Rg4 {[%clk 0:00:07.5]} 46... a3 {[%clk 0:00:05.4]} 47. Be4
{[%clk 0:00:07.7]} 47... Rb8 {[%clk 0:00:04.9]} 48. Rg2 {[%clk 0:00:08]} 48...
Rh8 {[%clk 0:00:04]} 49. Rg4 {[%clk 0:00:07.3]} 49... Rb8 {[%clk 0:00:03.9]} 50.
f4 {[%clk 0:00:07.9]} 50... Bd4 {[%clk 0:00:03.6]} 51. Rg2 {[%clk 0:00:08.2]}
51... Rh8 {[%clk 0:00:03.3]} 52. Rh2 {[%clk 0:00:08.5]} 52... Kd8 {[%clk
0:00:03]} 53. h5 {[%clk 0:00:08.3]} 53... Rh6 {[%clk 0:00:03]} 54. Bg6 {[%clk
0:00:07.8]} 54... Ke7 {[%clk 0:00:03.9]} 55. f5 {[%clk 0:00:08.1]} 55... Kf6
{[%clk 0:00:04.2]} 56. Re2 {[%clk 0:00:08.7]} 56... Rh8 {[%clk 0:00:04.3]} 57.
Re6+ {[%clk 0:00:08.2]} 57... Kg5 {[%clk 0:00:04.9]} 58. Rxd6 {[%clk 0:00:08.8]}
58... Rb8 {[%clk 0:00:05.4]} 59. Ra6 {[%clk 0:00:09]} 59... Rb1+ {[%clk
0:00:05.1]} 60. Ke2 {[%clk 0:00:09.2]} 60... Rb2+ {[%clk 0:00:06]} 61. Kd3
{[%clk 0:00:09.1]} 61... Rxa2 {[%clk 0:00:06.6]} 62. d6 {[%clk 0:00:09.7]} 62...
Ra1 {[%clk 0:00:06.3]} 63. d7 {[%clk 0:00:10.1]} 63... Bf6 {[%clk 0:00:05.6]}
64. Kc2 {[%clk 0:00:09.5]} 64... Bd8 {[%clk 0:00:04.3]} 65. Ra8 {[%clk
0:00:09.4]} 65... a2 {[%clk 0:00:04.7]} 66. f6 {[%clk 0:00:09]} 66... Bxf6
{[%clk 0:00:03.5]} 67. Bd3 {[%clk 0:00:09.1]} 67... Rh1 {[%clk 0:00:02.2]} 68.
Rxa2 {[%clk 0:00:08.4]} 68... Rxh5 {[%clk 0:00:02.4]} 69. Ra5 {[%clk 0:00:07.6]}
69... Rh2+ {[%clk 0:00:02.3]} 70. Kb3 {[%clk 0:00:07.3]} 70... Rb2+ {[%clk
0:00:02.1]} 71. Ka3 {[%clk 0:00:07]} 71... Rd2 {[%clk 0:00:02.1]} 72. Rxc5+
{[%clk 0:00:07.3]} 72... Kf4 {[%clk 0:00:02.4]} 73. Rd5 {[%clk 0:00:07.8]} 73...
Bd8 {[%clk 0:00:02]} 74. Ka4 {[%clk 0:00:08.3]} 74... Ke3 {[%clk 0:00:02.4]} 75.
Kb5 {[%clk 0:00:08.9]} 75... Rxd3 {[%clk 0:00:02.3]} 76. Rxd3+ {[%clk
0:00:09.5]} 76... Kxd3 {[%clk 0:00:02.7]} 77. c5 {[%clk 0:00:09.6]} 77... Kd4
{[%clk 0:00:03.1]} 78. c6 {[%clk 0:00:09.4]} 78... Kd5 {[%clk 0:00:03.3]} 79. c7
{[%clk 0:00:08.1]} 79... Bxc7 {[%clk 0:00:03.1]} 80. d8=Q+ {[%clk 0:00:09]}
80... Bxd8 {[%clk 0:00:03.5]} 1/2-1/2

[Event "*** Titled Tuesday Blitz"]
[Site "Chess.com"]
[Date "2020.11.03"]
[Round "8"]
[White "hansen"]
[Black "DenLaz"]
[Result "1/2-1/2"]
[WhiteElo "2926"]
[BlackElo "2737"]
[TimeControl "180+1"]
[EndTime "11:34:05 PST"]
[Termination "Game drawn by repetition"]

1. e4 {[%clk 0:02:56.6]} 1... e5 {[%clk 0:02:59.3]} 2. Nf3 {[%clk 0:02:54.7]}
2... Nc6 {[%clk 0:02:59.9]} 3. Bb5 {[%clk 0:02:54.6]} 3... a6 {[%clk 0:03:00.4]}
4. Ba4 {[%clk 0:02:55]} 4... Nf6 {[%clk 0:03:01.1]} 5. O-O {[%clk 0:02:55.1]}
5... Be7 {[%clk 0:03:01.7]} 6. Re1 {[%clk 0:02:55.5]} 6... b5 {[%clk 0:03:02]}
7. Bb3 {[%clk 0:02:55.5]} 7... d6 {[%clk 0:03:02.7]} 8. c3 {[%clk 0:02:54.3]}
8... O-O {[%clk 0:03:03]} 9. h3 {[%clk 0:02:54.2]} 9... Bb7 {[%clk 0:03:03.2]}
10. d4 {[%clk 0:02:48.1]} 10... Re8 {[%clk 0:03:02.3]} 11. Nbd2 {[%clk
0:02:46.7]} 11... Bf8 {[%clk 0:03:00.3]} 12. Bc2 {[%clk 0:02:43.5]} 12... g6
{[%clk 0:02:58.2]} 13. a3 {[%clk 0:02:40.8]} 13... Bg7 {[%clk 0:02:52.7]} 14.
Nf1 {[%clk 0:02:34.7]} 14... d5 {[%clk 0:02:43.9]} 15. Nxe5 {[%clk 0:02:35]}
15... Nxe5 {[%clk 0:02:35.9]} 16. dxe5 {[%clk 0:02:35.2]} 16... Nxe4 {[%clk
0:02:35]} 17. f3 {[%clk 0:02:31.9]} 17... Nc5 {[%clk 0:02:33.6]} 18. Be3 {[%clk
0:02:31.9]} 18... Ne6 {[%clk 0:02:27.2]} 19. f4 {[%clk 0:02:32]} 19... c5 {[%clk
0:02:27.6]} 20. Qg4 {[%clk 0:02:17.4]} 20... d4 {[%clk 0:02:20.4]} 21. Rad1
{[%clk 0:02:17.1]} 21... Qc7 {[%clk 0:01:43.9]} 22. Bc1 {[%clk 0:02:15.2]} 22...
dxc3 {[%clk 0:01:30.5]} 23. bxc3 {[%clk 0:02:14.4]} 23... Rad8 {[%clk
0:01:30.1]} 24. Rxd8 {[%clk 0:02:06.5]} 24... Qxd8 {[%clk 0:01:27.5]} 25. Ng3
{[%clk 0:02:04.5]} 25... h5 {[%clk 0:01:22.3]} 26. Nxh5 {[%clk 0:01:53.4]} 26...
gxh5 {[%clk 0:01:21.3]} 27. Qxh5 {[%clk 0:01:54.3]} 27... Nf8 {[%clk 0:01:21.4]}
28. Re3 {[%clk 0:01:32.7]} 28... Re6 {[%clk 0:00:34.4]} 29. Rg3 {[%clk
0:01:30.9]} 29... Rg6 {[%clk 0:00:34.6]} 30. Bxg6 {[%clk 0:01:20]} 30... fxg6
{[%clk 0:00:35.5]} 31. Qe2 {[%clk 0:01:16.8]} 31... Qd5 {[%clk 0:00:31.7]} 32.
Rd3 {[%clk 0:00:55.4]} 32... Qc4 {[%clk 0:00:30.1]} 33. Qe3 {[%clk 0:00:41.5]}
33... Be4 {[%clk 0:00:26.8]} 34. Rd8 {[%clk 0:00:37.5]} 34... Bf5 {[%clk
0:00:25]} 35. Bd2 {[%clk 0:00:29.8]} 35... a5 {[%clk 0:00:21.6]} 36. Rb8 {[%clk
0:00:25.1]} 36... Kf7 {[%clk 0:00:18]} 37. Qf3 {[%clk 0:00:22.1]} 37... Nd7
{[%clk 0:00:15.1]} 38. Rb7 {[%clk 0:00:16.4]} 38... Be6 {[%clk 0:00:15.6]} 39.
Qc6 {[%clk 0:00:15.3]} 39... Qd3 {[%clk 0:00:16]} 40. Be1 {[%clk 0:00:13.6]}
40... Qd1 {[%clk 0:00:15.3]} 41. Qe4 {[%clk 0:00:05.5]} 41... Bf5 {[%clk
0:00:07.8]} 42. Qe3 {[%clk 0:00:04.6]} 42... Qd5 {[%clk 0:00:06.3]} 43. Rxb5
{[%clk 0:00:04.6]} 43... a4 {[%clk 0:00:06.7]} 44. Ra5 {[%clk 0:00:04.8]} 44...
Be4 {[%clk 0:00:05.5]} 45. Qg3 {[%clk 0:00:04.1]} 45... Bf5 {[%clk 0:00:05.7]}
46. Kh2 {[%clk 0:00:04.4]} 46... Nf8 {[%clk 0:00:05.5]} 47. Bf2 {[%clk
0:00:04.5]} 47... Ne6 {[%clk 0:00:06]} 48. Ra7+ {[%clk 0:00:05.1]} 48... Kg8
{[%clk 0:00:06.1]} 49. Qh4 {[%clk 0:00:05.5]} 49... Qd2 {[%clk 0:00:04.3]} 50.
Qg3 {[%clk 0:00:03.3]} 50... c4 {[%clk 0:00:03.7]} 51. Ra8+ {[%clk 0:00:03.2]}
51... Kf7 {[%clk 0:00:03.8]} 52. Rxa4 {[%clk 0:00:03.5]} 52... Bh6 {[%clk
0:00:03.8]} 53. Rxc4 {[%clk 0:00:03.5]} 53... Bxf4 {[%clk 0:00:03.6]} 54. Rxf4
{[%clk 0:00:03.8]} 54... Nxf4 {[%clk 0:00:04.5]} 55. a4 {[%clk 0:00:03.8]} 55...
Ne6 {[%clk 0:00:04.9]} 56. a5 {[%clk 0:00:04]} 56... Qa2 {[%clk 0:00:05.6]} 57.
Qh4 {[%clk 0:00:02.4]} 57... g5 {[%clk 0:00:05.2]} 58. Qh5+ {[%clk 0:00:02.3]}
58... Bg6 {[%clk 0:00:05.2]} 59. Qf3+ {[%clk 0:00:02.6]} 59... Kg7 {[%clk
0:00:05.6]} 60. Bb6 {[%clk 0:00:03.2]} 60... Nf4 {[%clk 0:00:05.2]} 61. Bd4
{[%clk 0:00:03]} 61... Kh6 {[%clk 0:00:04.9]} 62. h4 {[%clk 0:00:02.8]} 62...
Bh5 {[%clk 0:00:03.6]} 63. hxg5+ {[%clk 0:00:03.3]} 63... Kxg5 {[%clk
0:00:04.5]} 64. Qg3+ {[%clk 0:00:03.1]} 64... Kf5 {[%clk 0:00:04.6]} 65. Be3
{[%clk 0:00:03.3]} 65... Ne6 {[%clk 0:00:04.3]} 66. Qh3+ {[%clk 0:00:02.7]}
66... Ke4 {[%clk 0:00:02.3]} 67. Qxh5 {[%clk 0:00:01.9]} 67... Kxe3 {[%clk
0:00:02.8]} 68. Qh3+ {[%clk 0:00:02.5]} 68... Ke4 {[%clk 0:00:02.6]} 69. Qf3+
{[%clk 0:00:01.8]} 69... Kxe5 {[%clk 0:00:03]} 70. Qb7 {[%clk 0:00:01.7]} 70...
Qd2 {[%clk 0:00:02]} 71. Qb8+ {[%clk 0:00:02]} 71... Kf5 {[%clk 0:00:02.1]} 72.
a6 {[%clk 0:00:02.9]} 72... Qh6+ {[%clk 0:00:02]} 73. Kg1 {[%clk 0:00:02.8]}
73... Qe3+ {[%clk 0:00:02.6]} 74. Kf1 {[%clk 0:00:02.5]} 74... Qc1+ {[%clk
0:00:03.3]} 75. Kf2 {[%clk 0:00:03.1]} 75... Qd2+ {[%clk 0:00:03.3]} 76. Kg1
{[%clk 0:00:03.6]} 76... Qe1+ {[%clk 0:00:03.2]} 77. Kh2 {[%clk 0:00:03]} 77...
Qh4+ {[%clk 0:00:04]} 78. Kg1 {[%clk 0:00:03.5]} 78... Qe1+ {[%clk 0:00:04.9]}
79. Kh2 {[%clk 0:00:03.9]} 79... Qh4+ {[%clk 0:00:05.7]} 80. Kg1 {[%clk
0:00:04.4]} 80... Qe1+ {[%clk 0:00:06.6]} 1/2-1/2

[Event "*** Titled Tuesday Blitz"]
[Site "Chess.com"]
[Date "2020.11.03"]
[Round "8"]
[White "RD4ever"]
[Black "XDPS"]
[Result "1-0"]
[WhiteElo "2847"]
[BlackElo "2669"]
[TimeControl "180+1"]
[EndTime "11:34:09 PST"]
[Termination "RD4ever won by checkmate"]

1. d4 {[%clk 0:03:00.9]} 1... d5 {[%clk 0:02:59.3]} 2. c4 {[%clk 0:03:00.6]}
2... e6 {[%clk 0:02:56.4]} 3. Nf3 {[%clk 0:03:00.5]} 3... a6 {[%clk 0:02:54.9]}
4. Nc3 {[%clk 0:02:38.2]} 4... Nf6 {[%clk 0:02:51]} 5. cxd5 {[%clk 0:02:33.5]}
5... exd5 {[%clk 0:02:51.9]} 6. Bg5 {[%clk 0:02:34]} 6... Be6 {[%clk 0:02:51.1]}
7. Qb3 {[%clk 0:02:30]} 7... Nbd7 {[%clk 0:02:48.4]} 8. e3 {[%clk 0:02:09]} 8...
Bd6 {[%clk 0:02:29]} 9. Be2 {[%clk 0:01:54.3]} 9... b5 {[%clk 0:02:13.4]} 10.
O-O {[%clk 0:01:52.6]} 10... O-O {[%clk 0:02:09.7]} 11. Rfc1 {[%clk 0:01:42.8]}
11... Qb8 {[%clk 0:01:58]} 12. Qd1 {[%clk 0:01:19.2]} 12... c6 {[%clk
0:01:37.9]} 13. Bh4 {[%clk 0:01:08.7]} 13... Rc8 {[%clk 0:01:31]} 14. Bg3 {[%clk
0:01:07]} 14... Bxg3 {[%clk 0:01:27.9]} 15. hxg3 {[%clk 0:01:06.9]} 15... Qd6
{[%clk 0:01:27.1]} 16. Ne1 {[%clk 0:01:00.2]} 16... Ne4 {[%clk 0:01:04.9]} 17.
Nd3 {[%clk 0:00:57.7]} 17... f5 {[%clk 0:00:50.3]} 18. Bf3 {[%clk 0:00:48.7]}
18... Ndf6 {[%clk 0:00:41.2]} 19. Ne2 {[%clk 0:00:46.7]} 19... g5 {[%clk
0:00:37.6]} 20. Rc2 {[%clk 0:00:45.1]} 20... Rc7 {[%clk 0:00:29.9]} 21. Rac1
{[%clk 0:00:44.4]} 21... Rac8 {[%clk 0:00:30.3]} 22. Qe1 {[%clk 0:00:41.9]}
22... Ra7 {[%clk 0:00:10]} 23. Qb4 {[%clk 0:00:41.4]} 23... Bd7 {[%clk
0:00:02.2]} 24. Qxd6 {[%clk 0:00:29.1]} 24... Nxd6 {[%clk 0:00:03.1]} 25. Nb4
{[%clk 0:00:29.8]} 25... a5 {[%clk 0:00:02.2]} 26. Nxc6 {[%clk 0:00:29.3]} 26...
Bxc6 {[%clk 0:00:01.6]} 27. Rxc6 {[%clk 0:00:30.2]} 27... Rxc6 {[%clk
0:00:02.1]} 28. Rxc6 {[%clk 0:00:30.4]} 28... Nde8 {[%clk 0:00:02.7]} 29. Nc3
{[%clk 0:00:29.7]} 29... b4 {[%clk 0:00:02]} 30. Nxd5 {[%clk 0:00:30]} 30...
Nxd5 {[%clk 0:00:02.4]} 31. Bxd5+ {[%clk 0:00:30.9]} 31... Kf8 {[%clk 0:00:03]}
32. Kf1 {[%clk 0:00:30.2]} 32... a4 {[%clk 0:00:02]} 33. Ke2 {[%clk 0:00:30.3]}
33... b3 {[%clk 0:00:02.2]} 34. axb3 {[%clk 0:00:29.8]} 34... axb3 {[%clk
0:00:03.1]} 35. Bxb3 {[%clk 0:00:30.5]} 35... Rb7 {[%clk 0:00:03.5]} 36. Rc3
{[%clk 0:00:31.1]} 36... Nd6 {[%clk 0:00:04]} 37. f3 {[%clk 0:00:29.3]} 37... g4
{[%clk 0:00:04.2]} 38. Kd3 {[%clk 0:00:29.1]} 38... h5 {[%clk 0:00:04.3]} 39.
Kc2 {[%clk 0:00:28.6]} 39... Ke7 {[%clk 0:00:04.5]} 40. Bd5 {[%clk 0:00:28.5]}
40... Rb5 {[%clk 0:00:04.3]} 41. Rc5 {[%clk 0:00:28.7]} 41... Rb6 {[%clk
0:00:04.4]} 42. e4 {[%clk 0:00:26.6]} 42... Rb4 {[%clk 0:00:04.5]} 43. Kc3
{[%clk 0:00:26.5]} 43... Rb8 {[%clk 0:00:04.1]} 44. e5 {[%clk 0:00:26.4]} 44...
Ne8 {[%clk 0:00:04.6]} 45. b4 {[%clk 0:00:25]} 45... Kd8 {[%clk 0:00:04.3]} 46.
Bc4 {[%clk 0:00:23.6]} 46... Ra8 {[%clk 0:00:04.6]} 47. Kb2 {[%clk 0:00:22.4]}
47... Rb8 {[%clk 0:00:04.5]} 48. Kc3 {[%clk 0:00:22.5]} 48... Ra8 {[%clk
0:00:05.1]} 49. Ra5 {[%clk 0:00:23.1]} 49... Rc8 {[%clk 0:00:05.2]} 50. d5
{[%clk 0:00:23.2]} 50... Nc7 {[%clk 0:00:05.6]} 51. Kd4 {[%clk 0:00:23.5]} 51...
Rb8 {[%clk 0:00:05.7]} 52. d6 {[%clk 0:00:23.2]} 52... Ne8 {[%clk 0:00:05.8]}
53. b5 {[%clk 0:00:20.6]} 53... Kd7 {[%clk 0:00:05.2]} 54. Ra7+ {[%clk
0:00:20.3]} 54... Kd8 {[%clk 0:00:05.7]} 55. Kc5 {[%clk 0:00:20.2]} 55... Rc8+
{[%clk 0:00:05.6]} 56. Kb4 {[%clk 0:00:20.7]} 56... Rb8 {[%clk 0:00:05.8]} 57.
e6 {[%clk 0:00:19.1]} 57... Nxd6 {[%clk 0:00:05.7]} 58. Rd7+ {[%clk 0:00:19.2]}
58... Ke8 {[%clk 0:00:06.6]} 59. Rxd6 {[%clk 0:00:20.1]} 59... f4 {[%clk
0:00:07]} 60. fxg4 {[%clk 0:00:20.1]} 60... hxg4 {[%clk 0:00:07.1]} 61. gxf4
{[%clk 0:00:20.5]} 61... g3 {[%clk 0:00:08]} 62. Rd3 {[%clk 0:00:20.4]} 62...
Ke7 {[%clk 0:00:08.4]} 63. Rxg3 {[%clk 0:00:20.7]} 63... Kf6 {[%clk 0:00:09]}
64. Kc5 {[%clk 0:00:20.7]} 64... Rc8+ {[%clk 0:00:09.1]} 65. Kb4 {[%clk
0:00:20.8]} 65... Rb8 {[%clk 0:00:09.5]} 66. Re3 {[%clk 0:00:21.5]} 66... Ke7
{[%clk 0:00:09.9]} 67. f5 {[%clk 0:00:22]} 67... Rf8 {[%clk 0:00:10.3]} 68. g4
{[%clk 0:00:22]} 68... Rg8 {[%clk 0:00:10.8]} 69. b6 {[%clk 0:00:22.2]} 69...
Rb8 {[%clk 0:00:10.8]} 70. Kc5 {[%clk 0:00:20.7]} 70... Rc8+ {[%clk 0:00:10.9]}
71. Kb5 {[%clk 0:00:21.2]} 71... Rg8 {[%clk 0:00:11.8]} 72. f6+ {[%clk 0:00:20]}
72... Kxf6 {[%clk 0:00:12.3]} 73. e7 {[%clk 0:00:20.6]} 73... Re8 {[%clk
0:00:12.7]} 74. b7 {[%clk 0:00:20.5]} 74... Kg5 {[%clk 0:00:12.9]} 75. Kc6
{[%clk 0:00:20.7]} 75... Kxg4 {[%clk 0:00:13.2]} 76. b8=Q {[%clk 0:00:20.7]}
76... Rxb8 {[%clk 0:00:13.3]} 77. e8=Q {[%clk 0:00:20.8]} 77... Rxe8 {[%clk
0:00:13.6]} 78. Rxe8 {[%clk 0:00:21.7]} 78... Kg5 {[%clk 0:00:14.4]} 79. Rf8
{[%clk 0:00:21.8]} 79... Kg6 {[%clk 0:00:12.9]} 80. Kd6 {[%clk 0:00:22]} 80...
Kg7 {[%clk 0:00:13.8]} 81. Rf7+ {[%clk 0:00:22.1]} 81... Kg6 {[%clk 0:00:14.7]}
82. Ke5 {[%clk 0:00:22.3]} 82... Kh6 {[%clk 0:00:15.6]} 83. Kf5 {[%clk
0:00:21.9]} 83... Kh5 {[%clk 0:00:15.9]} 84. Rh7# {[%clk 0:00:14.6]} 1-0